bitfinex/quotes_SOLUSD_20240718
["timestamp","ask_amount","ask_price","bid_price","bid_amount"]
[1721290794337,0.17,159.59,159.54,58.3435522]
[1721290794537,46.97824087,159.6,159.54,57.09]
[1721290794950,18.356,159.59,159.54,57.09]
[1721290797946,18.356,159.59,159.53,12.09]
[1721290798254,18.356,159.59,159.54,12.09]
[1721290798458,6.2664,159.58,159.54,12.09]
[1721290798764,18.3564,159.58,159.53,12.09]
[1721290798936,6.53496628,159.57,159.53,12.09]
[1721290801558,6.53496628,159.57,159.54,12.09]
[1721290801945,6.53496628,159.57,159.53,12.09]
[1721290803463,6.53496628,159.57,159.49,1.25352098]
[1721290803642,6.53496628,159.57,159.52,12.09]
[1721290803838,6.53496628,159.57,159.53,12.09]
[1721290805943,24.89186628,159.57,159.51,12.09]
[1721290806135,24.89186628,159.57,159.52,45.0]
[1721290806335,12.09,159.56,159.47,20.0]
[1721290806540,6.53496628,159.57,159.49,12.09]
[1721290806541,18.2424,159.54,159.49,12.09]
[1721290807158,12.09,159.53,159.48,12.09]
[1721290808446,12.09,159.53,159.49,45.0]
[1721290808845,12.09,159.53,159.47,12.09]
[1721290809265,6.53621538,159.52,159.48,45.0]
[1721290809868,18.62621538,159.52,159.48,45.0]
[1721290810470,6.53621538,159.52,159.48,45.0]
[1721290810768,18.62621538,159.52,159.48,45.0]
[1721290811085,12.80501538,159.52,159.43,0.0627555]
[1721290811271,12.09,159.51,159.45,12.09]
[1721290812353,12.09,159.51,159.46,45.0]
[1721290813264,12.09,159.51,159.46,57.09]
[1721290817165,6.4649,159.5,159.43,0.0627555]
[1721290817367,12.09,159.48,159.43,12.1527555]
[1721290817544,21.3656,159.49,159.43,0.0627555]
[1721290817745,12.09,159.47,159.43,0.0627555]
[1721290817972,15.0957,159.49,159.43,0.0627555]
[1721290818285,12.09,159.46,159.43,0.0627555]
[1721290818575,0.17,159.48,159.43,0.0627555]
[1721290818576,12.09,159.47,159.43,0.0627555]
[1721290819083,12.26,159.48,159.43,0.0627555]
[1721290819782,6.54414588,159.47,159.43,0.0627555]
[1721290821154,6.54414588,159.47,159.43,1.31713209]
[1721290821369,6.54414588,159.47,159.43,58.40713209]
[1721290821579,27.1857,159.49,159.44,12.09]
[1721290821860,40.00204599,159.49,159.44,12.09]
[1721290822475,40.00204599,159.49,159.43,46.31713209]
[1721290822476,12.09,159.48,159.43,45.0627555]
[1721290822686,12.09,159.47,159.43,0.0627555]
[1721290823281,28.08214599,159.49,159.43,57.1527555]
[1721290823484,12.09,159.48,159.43,57.1527555]
[1721290824760,12.09,159.47,159.43,45.0627555]
[1721290825367,28.08214599,159.49,159.43,57.1527555]
[1721290825559,12.09,159.48,159.43,57.1527555]
[1721290825986,6.54644599,159.49,159.43,57.1527555]
[1721290826163,6.54644599,159.49,159.48,12.09]
[1721290826362,15.0152,159.53,159.48,57.09]
[1721290826670,13.12653293,159.54,159.5,12.09]
[1721290826989,6.5778,159.54,159.5,12.09]
[1721290827965,18.3574,159.56,159.5,12.09]
[1721290828165,0.17,159.55,159.51,12.09]
[1721290828759,18.5277,159.55,159.5,12.09]
[1721290829164,12.09,159.54,159.49,12.09]
[1721290829372,12.09,159.54,159.48,45.0]
[1721290829373,6.2685,159.53,159.46,16.4081]
[1721290829566,18.3585,159.53,159.48,12.09]
[1721290829781,12.09,159.53,159.48,12.09]
[1721290829980,12.26,159.55,159.5,12.09]
[1721290831062,18.5276,159.55,159.5,12.09]
[1721290831484,12.26,159.55,159.5,13.34379968]
[1721290831687,0.17,159.55,159.51,12.09]
[1721290831887,12.09,159.56,159.51,12.09]
[1721290832386,28.00185826,159.57,159.51,12.09]
[1721290832387,40.09185826,159.57,159.51,12.09]
[1721290832682,0.17,159.56,159.51,12.09]
[1721290833085,39.92185826,159.57,159.51,12.09]
[1721290833393,6.54985826,159.57,159.54,12.09]
[1721290833597,6.077,159.58,159.54,12.09]
[1721290834767,12.81655617,159.6,159.56,12.09]
[1721290835563,6.55085617,159.6,159.55,45.0]
[1721290835771,12.81675617,159.6,159.55,57.09]
[1721290835977,6.2662,159.59,159.55,57.09]
[1721290836178,18.3562,159.59,159.55,45.0]
[1721290836580,6.2662,159.59,159.55,57.09]
[1721290836775,18.64085617,159.6,159.55,57.09]
[1721290837077,6.55085617,159.6,159.56,13.34340453]
[1721290837387,6.55085617,159.6,159.57,57.09]
[1721290837690,18.5363,159.62,159.57,57.09]
[1721290837893,6.4463,159.62,159.58,12.09]
[1721290838069,12.09,159.6,159.57,45.0]
[1721290838273,12.09,159.6,159.56,45.0]
[1721290838595,18.3559,159.6,159.55,57.09]
[1721290839781,18.3559,159.6,159.55,45.0]
[1721290841172,18.3561,159.59,159.55,45.0]
[1721290841386,12.09,159.58,159.55,45.0]
[1721290841590,12.09,159.58,159.54,45.0]
[1721290842401,12.09,159.57,159.52,12.09]
[1721290842878,12.09,159.58,159.53,12.09]
[1721290844006,12.09,159.58,159.54,45.0]
[1721290844299,18.3561,159.59,159.54,57.09]
[1721290844795,12.09,159.58,159.54,45.0]
[1721290845899,18.3565,159.58,159.54,45.0]
[1721290846204,12.09,159.56,159.54,45.0]
[1721290846402,12.09,159.56,159.51,12.09]
[1721290846575,12.09,159.56,159.52,45.0]
[1721290846775,0.17,159.57,159.52,58.34362757]
[1721290847078,12.26,159.58,159.52,57.09]
[1721290847481,12.09,159.56,159.52,45.0]
[1721290847795,12.09,159.55,159.52,45.0]
[1721290847996,12.09,159.55,159.49,12.09]
[1721290849098,12.09,159.55,159.5,1.25377495]
[1721290849298,12.09,159.55,159.5,13.34377495]
[1721290849606,12.98555595,159.56,159.49,12.09]
[1721290849912,12.09,159.54,159.5,45.0]
[1721290850578,18.3577,159.55,159.5,45.0]
[1721290850782,12.09,159.55,159.5,45.0]
[1721290851583,12.09,159.54,159.5,45.0]
[1721290852691,12.09,159.55,159.5,57.09]
[1721290855304,12.09,159.55,159.5,45.0]
[1721290855492,12.09,159.55,159.5,57.09]
[1721290856398,12.09,159.54,159.5,45.0]
[1721290856629,12.09,159.51,159.46,12.09]
[1721290857804,12.09,159.51,159.47,45.0]
[1721290859682,6.54840058,159.53,159.47,46.25395652]
[1721290860016,18.63840058,159.53,159.47,58.34395652]
[1721290860313,12.09,159.53,159.47,58.34395652]
[1721290861108,12.09,159.53,159.47,57.09]
[1721290861417,12.09,159.52,159.47,57.09]
[1721290863112,12.09,159.52,159.47,45.0]
[1721290863317,12.09,159.52,159.48,1.25390091]
[1721290863813,12.09,159.52,159.47,45.0]
[1721290864794,12.8164295,159.54,159.44,15.9231]
[1721290864795,12.09,159.49,159.44,15.9231]
[1721290865099,12.09,159.48,159.44,15.9231]
[1721290865304,12.09,159.48,159.43,12.1527555]
[1721290866096,12.09,159.48,159.43,0.0627555]
[1721290866296,12.09,159.47,159.43,0.0627555]
[1721290866596,6.2703,159.48,159.43,0.0627555]
[1721290866898,12.09,159.46,159.43,0.0627555]
[1721290867112,12.09,159.47,159.43,0.0627555]
[1721290867799,0.17,159.49,159.43,0.0627555]
[1721290868113,12.09,159.44,159.43,0.0627555]
[1721290868314,6.2712,159.46,159.43,0.0627555]
[1721290868627,12.09,159.44,159.43,0.0627555]
[1721290870191,12.26,159.44,159.43,0.0627555]
[1721290870707,18.80207125,159.44,159.43,0.0627555]
[1721290871111,25.07397125,159.44,159.43,0.0627555]
[1721290871710,6.54207125,159.44,159.43,0.0627555]
[1721290871890,16.0218,159.49,159.43,0.0627555]
[1721290871891,22.2964,159.49,159.43,0.0627555]
[1721290872090,12.09,159.46,159.43,0.0627555]
[1721290872308,18.63095739,159.46,159.43,0.0627555]
[1721290872609,12.09,159.45,159.43,0.0627555]
[1721290872908,12.09,159.44,159.43,0.0627555]
[1721290874307,18.5319,159.44,159.43,0.0627555]
[1721290875306,12.09,159.44,159.43,0.0627555]
[1721290875712,6.53984979,159.45,159.43,0.0627555]
[1721290876210,24.90144979,159.45,159.43,0.0627555]
[1721290876414,12.09,159.44,159.43,0.0627555]
[1721290876804,18.62984979,159.45,159.43,0.0627555]
[1721290877199,18.3619,159.44,159.43,0.0627555]
[1721290877429,18.5319,159.44,159.43,0.0627555]
[1721290877606,12.09,159.44,159.43,0.0627555]
[1721290878012,24.90144979,159.45,159.43,0.0627555]
[1721290878314,12.09,159.44,159.43,0.0627555]
[1721290880218,18.62984979,159.45,159.43,0.0627555]
[1721290880720,6.53984979,159.45,159.43,0.0627555]
[1721290881334,12.81134979,159.45,159.43,0.0627555]
[1721290881620,24.90134979,159.45,159.43,0.0627555]
[1721290882202,12.09,159.44,159.43,0.0627555]
[1721290882422,18.3619,159.44,159.43,0.0627555]
[1721290883621,18.5319,159.44,159.43,0.0627555]
[1721290884521,12.26,159.44,159.43,0.0627555]
[1721290884823,12.09,159.44,159.43,0.0627555]
[1721290885029,6.53984979,159.45,159.43,0.0627555]
[1721290885502,6.53984979,159.45,159.43,45.0627555]
[1721290885710,18.62984979,159.45,159.43,0.0627555]
[1721290885931,6.53984979,159.45,159.43,0.0627555]
[1721290887708,18.62984979,159.45,159.43,0.0627555]
[1721290888837,6.53984979,159.45,159.43,0.0627555]
[1721290889708,24.90134979,159.45,159.43,0.0627555]
[1721290890126,18.62984979,159.45,159.43,0.0627555]
[1721290890931,12.09,159.44,159.43,0.0627555]
[1721290892130,18.3619,159.44,159.43,0.0627555]
[1721290894920,12.09,159.44,159.43,0.0627555]
[1721290896434,18.3619,159.44,159.43,0.0627555]
[1721290901943,12.09,159.44,159.43,0.0627555]
[1721290902444,24.90144979,159.45,159.43,0.0627555]
[1721290903523,6.2719,159.44,159.43,0.0627555]
[1721290903726,18.3619,159.44,159.43,0.0627555]
[1721290904746,6.2719,159.44,159.43,0.0627555]
[1721290904936,6.53984979,159.45,159.43,0.0627555]
[1721290905532,18.3593,159.51,159.44,12.09]
[1721290905849,12.8113647,159.5,159.45,57.09]
[1721290906060,12.8113647,159.5,159.46,12.09]
[1721290906232,12.8113647,159.5,159.47,45.0]
[1721290906434,12.8113647,159.5,159.45,57.09]
[1721290906950,6.27,159.49,159.45,57.09]
[1721290907625,18.36,159.49,159.45,45.0]
[1721290910049,24.9014647,159.5,159.45,45.0]
[1721290910247,24.9014647,159.5,159.45,57.09]
[1721290912239,18.36,159.49,159.45,45.0]
[1721290913959,6.27,159.49,159.45,45.0]
[1721290914161,24.9014647,159.5,159.45,45.0]
[1721290914863,6.5417647,159.5,159.45,57.09]
[1721290916157,34.0384,159.48,159.43,0.0627555]
[1721290916381,12.09,159.44,159.43,0.0627555]
[1721290916737,18.63408118,159.44,159.43,0.0627555]
[1721290917655,24.90598118,159.44,159.43,0.0627555]
[1721290919853,25.07598118,159.44,159.43,0.0627555]
[1721290921046,37.16598118,159.44,159.43,0.0627555]
[1721290924167,18.63408118,159.44,159.43,0.0627555]
[1721290924872,24.90598118,159.44,159.43,0.0627555]
[1721290925641,12.98598118,159.44,159.43,0.0627555]
[1721290925866,25.07598118,159.44,159.43,0.0627555]
[1721290926567,24.90598118,159.44,159.43,0.0627555]
[1721290928069,25.07598118,159.44,159.43,0.0627555]
[1721290933468,37.16598118,159.44,159.43,0.0627555]
[1721290937648,25.07598118,159.44,159.43,0.0627555]
[1721290945177,37.16598118,159.44,159.43,0.0627555]
[1721290946883,92.26598118,159.44,159.43,0.0627555]
[1721290947187,98.63298118,159.44,159.43,0.0627555]
[1721290947366,98.63298118,159.44,159.34,16.3116]
[1721290947367,6.2741,159.39,159.34,16.3116]
[1721290947567,12.09,159.37,159.34,16.3116]
[1721290948161,12.09,159.37,159.32,12.09]
[1721290948487,12.09,159.36,159.31,12.09]
[1721290948691,12.09,159.36,159.32,45.0]
[1721290949070,6.54046654,159.38,159.3,16.237]
[1721290949268,12.09,159.34,159.3,16.237]
[1721290950489,6.2748,159.37,159.3,16.237]
[1721290950490,12.09,159.35,159.3,16.237]
[1721290950662,12.09,159.34,159.3,16.237]
[1721290951391,12.09,159.33,159.3,16.237]
[1721290951569,0.95837241,159.31,159.3,16.237]
[1721290952790,0.95837241,159.31,159.3,61.237]
[1721290955272,0.95837241,159.31,159.3,45.0]
[1721290956686,13.04837241,159.31,159.27,16.0375365]
[1721290956893,13.04837241,159.31,159.28,45.0]
[1721290957267,0.95837241,159.31,159.28,45.0]
[1721290957688,0.95837241,159.31,159.28,52.26922881]
[1721290957893,0.95837241,159.31,159.3,12.09]
[1721290958190,0.95837241,159.31,159.3,57.09]
[1721290958784,12.09,159.35,159.3,57.09]
[1721290959095,12.09,159.35,159.31,45.0]
[1721290959270,12.09,159.34,159.31,45.0]
[1721290959686,12.09,159.35,159.3,57.09]
[1721290960194,0.95837241,159.31,159.3,57.09]
[1721290960688,0.95837241,159.31,159.27,28.1275365]
[1721290960898,0.95837241,159.31,159.27,16.0375365]
[1721290961085,0.95837241,159.31,159.28,12.09]
[1721290961276,0.95837241,159.31,159.28,13.34544118]
[1721290961896,12.09,159.33,159.29,45.0]
[1721290962595,0.95837241,159.3,159.29,45.0]
[1721290964108,0.95837241,159.3,159.28,45.0]
[1721290964808,0.95837241,159.29,159.28,45.0]
[1721290965275,0.95837241,159.29,159.27,16.0375365]
[1721290965276,13.04837241,159.29,159.27,0.8166365]
[1721290965686,12.09,159.28,159.27,0.8166365]
[1721290966285,13.04837241,159.28,159.27,0.8166365]
[1721290966703,19.32657241,159.28,159.27,0.8166365]
[1721290967075,19.49657241,159.28,159.27,0.8166365]
[1721290967598,37.61437241,159.28,159.27,0.8166365]
[1721290967903,92.71437241,159.28,159.27,0.8166365]
[1721290968280,6.2803,159.23,159.17,15.4433]
[1721290968482,12.09,159.21,159.17,15.4433]
[1721290969698,12.09,159.21,159.15,12.09]
[1721290969894,18.61494397,159.21,159.15,12.09]
[1721290970705,12.09,159.23,159.17,12.09]
[1721290971013,12.09,159.23,159.18,1.25622284]
[1721290971381,12.09,159.23,159.17,12.09]
[1721290971601,12.09,159.23,159.18,45.0]
[1721290971803,0.95822493,159.19,159.18,46.25624399]
[1721290972388,0.95822493,159.19,159.18,58.34624399]
[1721290972983,0.95822493,159.19,159.18,45.0]
[1721290973378,0.95822493,159.19,159.17,45.0]
[1721290973585,0.95822493,159.19,159.17,57.09]
[1721290974088,0.95822493,159.19,159.18,13.34629899]
[1721290974407,0.95822493,159.19,159.18,58.34629899]
[1721290974604,0.95822493,159.19,159.18,57.09]
[1721290977792,0.95822493,159.19,159.18,45.0]
[1721290979594,0.95822493,159.19,159.12,21.5309]
[1721290979797,13.04822493,159.19,159.14,12.09]
[1721290979998,0.95822493,159.19,159.14,12.09]
[1721290980219,0.95822493,159.19,159.15,1.25655525]
[1721290980399,0.95822493,159.19,159.15,12.09]
[1721290980592,13.04822493,159.19,159.13,12.09]
[1721290980787,13.04822493,159.19,159.12,15.1415]
[1721290981003,13.04822493,159.19,159.13,12.09]
[1721290981210,12.09,159.18,159.12,15.1415]
[1721290981391,18.61830334,159.18,159.13,12.09]
[1721290982509,18.61830334,159.18,159.13,13.3467533]
[1721290982510,6.52830334,159.18,159.13,13.3467533]
[1721290982703,6.52830334,159.18,159.14,45.0]
[1721290983315,6.52830334,159.18,159.14,57.09]
[1721290983817,0.95856892,159.15,159.14,45.0]
[1721290986598,0.95856892,159.15,159.11,0.8166365]
[1721290986801,12.09,159.14,159.11,0.8166365]
[1721290987206,13.04856892,159.15,159.11,0.8166365]
[1721290988008,19.33186892,159.15,159.11,0.8166365]
[1721290988205,0.95856892,159.12,159.11,0.8166365]
[1721290988811,52.97076892,159.12,159.11,0.8166365]
[1721290989005,53.14076892,159.12,159.11,0.8166365]
[1721290990224,34.5433,159.11,158.95,0.8166365]
[1721290990422,6.286,159.09,158.95,25.1466365]
[1721290990624,6.4562,159.08,158.95,25.1466365]
[1721290991619,6.52228498,159.07,158.96,20.0]
[1721290992628,6.52228498,159.07,158.98,24.33]
[1721290992937,21.5477,159.12,159.01,39.7146]
[1721290993110,21.5477,159.12,159.02,65.17]
[1721290993111,6.52535938,159.1,159.02,65.17]
[1721290993310,21.5477,159.12,159.02,65.0]
[1721290993510,6.52580067,159.1,159.02,65.0]
[1721290993952,27.8323,159.12,159.02,65.0]
[1721290994108,0.95855118,159.03,159.02,65.0]
[1721290995835,0.95855118,159.03,159.02,45.0]
[1721290996044,0.95855118,159.03,159.02,65.0]
[1721290996641,0.95855118,159.03,159.02,66.25741848]
[1721290997439,0.95855118,159.03,159.02,65.0]
[1721290998320,0.95855118,159.03,159.01,15.3846]
[1721290999824,0.95855118,159.03,159.02,45.0]
[1721291000224,6.2863,159.08,159.02,45.0]
[1721291000936,0.95786718,159.03,159.02,45.0]
[1721291001329,0.95786718,159.03,158.97,40.966]
[1721291001531,0.95786718,159.03,158.98,20.0]
[1721291002735,0.95786718,159.03,158.99,45.0]
[1721291003528,6.2863,159.08,158.99,45.0]
[1721291003748,0.17,159.07,158.99,45.0]
[1721291004441,0.95786718,159.0,158.99,45.0]
[1721291005039,0.95786718,159.0,158.98,45.0]
[1721291005422,0.95786718,159.0,158.95,0.8166365]
[1721291006925,0.95786718,158.96,158.95,0.8166365]
[1721291021961,1.12786718,158.96,158.95,0.8166365]
[1721291022742,23.20276718,158.96,158.95,0.8166365]
[1721291022950,29.65296718,158.96,158.95,0.8166365]
[1721291023348,23.36216718,158.96,158.95,0.8166365]
[1721291024351,35.54216718,158.96,158.95,0.8166365]
[1721291024660,41.83296718,158.96,158.95,0.8166365]
[1721291025564,54.01296718,158.96,158.95,0.8166365]
[1721291025764,72.84296718,158.96,158.95,0.8166365]
[1721291025947,109.38296718,158.96,158.95,0.8166365]
[1721291026787,6.2922,158.93,158.84,12.18]
[1721291027074,12.18,158.89,158.84,12.18]
[1721291027277,12.18,158.89,158.81,15.5001]
[1721291027455,12.18,158.88,158.81,15.5001]
[1721291027664,12.18,158.88,158.82,12.18]
[1721291028184,12.18,158.88,158.83,12.18]
[1721291028383,6.68727731,158.92,158.81,15.5001]
[1721291028384,0.95786718,158.85,158.81,15.5001]
[1721291029678,0.95786718,158.85,158.83,24.38]
[1721291029876,0.95786718,158.85,158.84,46.59857924]
[1721291030062,22.3421,158.95,158.84,45.34]
[1721291030883,0.95786718,158.85,158.84,45.34]
[1721291032687,0.95786718,158.85,158.84,45.17]
[1721291032893,0.95786718,158.85,158.84,45.0]
[1721291033501,0.95786718,158.85,158.81,15.5001]
[1721291033688,0.95786718,158.85,158.81,16.75908509]
[1721291034501,0.95786718,158.82,158.81,16.75908509]
[1721291034805,0.95786718,158.82,158.81,60.5001]
[1721291034985,0.95786718,158.82,158.81,60.6701]
[1721291035700,0.95786718,158.82,158.81,60.8401]
[1721291035886,0.95786718,158.82,158.81,85.2201]
[1721291036075,22.3421,158.95,158.82,10.0]
[1721291036270,22.3421,158.95,158.84,24.38]
[1721291037174,28.6335,158.95,158.84,24.38]
[1721291037373,22.3421,158.95,158.84,24.38]
[1721291037697,6.2916,158.94,158.84,24.38]
[1721291038002,6.2921,158.93,158.84,24.38]
[1721291038184,41.1721,158.95,158.85,45.0]
[1721291038502,0.17,158.92,158.85,45.0]
[1721291039987,6.4626,158.92,158.85,45.0]
[1721291040397,12.97751037,158.92,158.85,45.0]
[1721291040889,6.68491037,158.92,158.85,45.0]
[1721291041073,12.97741037,158.92,158.85,45.0]
[1721291041591,6.2932,158.91,158.85,45.0]
[1721291042006,6.2934,158.9,158.85,45.0]
[1721291042174,6.2937,158.89,158.85,45.0]
[1721291042580,6.2937,158.89,158.81,15.5001]
[1721291042783,12.6692,158.89,158.82,45.0]
[1721291043119,27.8021,158.89,158.82,45.0]
[1721291043319,6.2941,158.88,158.82,45.0]
[1721291043479,27.8021,158.89,158.82,45.0]
[1721291043881,21.5084,158.89,158.82,45.0]
[1721291044082,6.3755,158.89,158.83,1.25897929]
[1721291044380,6.51491037,158.92,158.83,1.25897929]
[1721291044596,6.51491037,158.92,158.82,45.0]
[1721291044796,12.80741037,158.92,158.82,45.0]
[1721291045110,6.51491037,158.92,158.83,16.76737022]
[1721291045414,6.2929,158.91,158.84,45.0]
[1721291045581,6.2932,158.9,158.84,45.0]
[1721291046178,6.2938,158.89,158.84,45.0]
[1721291046389,6.2938,158.89,158.79,0.8166365]
[1721291046680,6.2938,158.89,158.79,45.8166365]
[1721291046881,0.17,158.91,158.8,1.25910127]
[1721291047496,6.4631,158.91,158.8,1.25910127]
[1721291047709,6.2933,158.9,158.79,45.8166365]
[1721291048006,6.2933,158.9,158.8,1.25902252]
[1721291048310,6.2933,158.9,158.79,45.8166365]
[1721291048519,6.2936,158.89,158.79,45.8166365]
[1721291049500,6.4632,158.91,158.79,45.8166365]
[1721291049799,6.2932,158.9,158.8,1.25900466]
[1721291050113,6.51491037,158.92,158.79,45.8166365]
[1721291050114,12.80741037,158.92,158.79,45.8166365]
[1721291050303,12.80741037,158.92,158.8,0.34]
[1721291051500,6.2929,158.91,158.8,0.34]
[1721291052217,12.81140997,158.91,158.8,0.34]
[1721291053398,6.2935,158.9,158.79,45.8166365]
[1721291054521,6.2936,158.89,158.79,45.8166365]
[1721291055325,6.68850997,158.91,158.79,45.8166365]
[1721291055625,6.68850997,158.91,158.8,0.34]
[1721291055792,6.68850997,158.91,158.79,45.8166365]
[1721291056211,6.2935,158.9,158.79,45.8166365]
[1721291056801,12.98150997,158.91,158.79,45.8166365]
[1721291057000,12.98150997,158.91,158.8,0.17]
[1721291057195,6.51850997,158.91,158.81,24.38]
[1721291057402,6.51850997,158.91,158.83,15.7574]
[1721291057598,9.22209206,158.93,158.84,70.63876989]
[1721291057799,6.51695293,158.93,158.84,70.63876989]
[1721291058015,29.1717,158.97,158.84,70.63876989]
[1721291058205,29.1717,158.97,158.84,69.38]
[1721291058206,6.2916,158.94,158.84,69.38]
[1721291058606,6.2921,158.93,158.84,69.38]
[1721291058818,6.2921,158.93,158.84,45.0]
[1721291059110,6.2918,158.94,158.84,45.0]
[1721291059919,6.69006371,158.95,158.84,45.0]
[1721291060127,6.4618,158.94,158.84,45.0]
[1721291061816,6.292,158.93,158.84,45.0]
[1721291063319,6.2925,158.92,158.84,45.0]
[1721291063523,6.293,158.91,158.83,15.7574]
[1721291064620,6.4632,158.9,158.83,15.7574]
[1721291064813,6.4632,158.9,158.79,15.8467365]
[1721291065421,6.4632,158.9,158.8,1.25911459]
[1721291066009,6.4632,158.9,158.79,15.8467365]
[1721291066323,6.4632,158.9,158.8,45.0]
[1721291066514,6.4632,158.9,158.81,1.25909506]
[1721291066717,6.4632,158.9,158.8,45.0]
[1721291067716,6.2936,158.89,158.8,45.0]
[1721291068123,0.17,158.88,158.8,45.0]
[1721291068328,6.4641,158.88,158.8,45.0]
[1721291068627,12.97665294,158.88,158.8,45.0]
[1721291069331,6.2945,158.87,158.79,15.8467365]
[1721291069505,6.2949,158.86,158.79,15.8467365]
[1721291069835,6.2945,158.87,158.79,15.8467365]
[1721291070335,0.17,158.86,158.79,15.8467365]
[1721291070638,6.68255294,158.88,158.8,1.25934723]
[1721291071211,12.97695294,158.88,158.79,15.8467365]
[1721291071410,12.97695294,158.88,158.8,46.25933339]
[1721291072129,6.68255294,158.88,158.8,45.0]
[1721291072331,6.2947,158.87,158.8,45.0]
[1721291072538,0.17,158.86,158.8,45.0]
[1721291073322,6.2955,158.85,158.79,0.8166365]
[1721291073827,6.4649,158.86,158.79,0.8166365]
[1721291074349,12.2,158.84,158.79,13.0166365]
[1721291074640,18.4952,158.85,158.79,13.0166365]
[1721291074825,18.4952,158.85,158.8,45.0]
[1721291075341,12.2,158.85,158.8,45.0]
[1721291076005,6.4649,158.86,158.65,6.1575]
[1721291076006,22.5169,158.82,158.65,6.1575]
[1721291076209,12.2,158.8,158.74,12.2]
[1721291076507,6.467,158.81,158.76,12.2]
[1721291076709,34.7169,158.82,158.76,12.2]
[1721291077017,6.2979,158.79,158.74,12.2]
[1721291077213,6.2982,158.78,158.74,12.2]
[1721291078235,6.2982,158.78,158.72,16.4729]
[1721291078236,6.298,158.78,158.72,16.4729]
[1721291078836,6.2975,158.8,158.72,16.4729]
[1721291079038,6.51867718,158.79,158.72,16.4729]
[1721291079238,12.81627718,158.79,158.72,16.4729]
[1721291079813,6.298,158.78,158.73,45.0]
[1721291080534,12.81637718,158.79,158.73,45.0]
[1721291082550,6.2982,158.78,158.73,45.0]
[1721291083637,12.81627718,158.79,158.73,45.0]
[1721291084649,6.51867718,158.79,158.73,45.0]
[1721291084831,28.8136,158.82,158.73,45.0]
[1721291085223,6.5170853,158.81,158.73,45.0]
[1721291086419,6.5170853,158.81,158.74,1.25960257]
[1721291087133,6.2961,158.83,158.74,1.25960257]
[1721291087336,6.51592676,158.83,158.74,1.25960257]
[1721291088551,6.2964,158.82,158.74,1.25960257]
[1721291089454,6.2964,158.82,158.74,1.25960257]
[1721291090749,6.51592676,158.83,158.77,6.532]
[1721291091049,6.2945,158.87,158.78,46.25915893]
[1721291091237,6.2945,158.87,158.78,45.0]
[1721291091619,6.2949,158.86,158.78,45.0]
[1721291092316,12.80771123,158.88,158.78,45.0]
[1721291092536,6.51341123,158.88,158.78,45.0]
[1721291092742,6.2944,158.87,158.78,45.0]
[1721291093049,12.80741123,158.88,158.79,16.52664335]
[1721291093233,12.80741123,158.88,158.8,46.25909127]
[1721291095554,6.51341123,158.88,158.8,46.25909127]
[1721291095941,21.7262,158.94,158.83,6.4635]
[1721291096144,6.5123543,158.92,158.85,15.3102]
[1721291096450,6.5123543,158.92,158.86,46.25869189]
[1721291096749,6.5123543,158.92,158.86,45.0]
[1721291096926,6.5123543,158.92,158.86,46.25869198]
[1721291097428,6.5123543,158.92,158.86,45.0]
[1721291098050,6.2932,158.91,158.86,45.0]
[1721291098327,12.19,158.91,158.86,57.19]
[1721291098758,12.19,158.9,158.86,45.0]
[1721291100244,12.19,158.9,158.85,27.5002]
[1721291100554,12.19,158.88,158.83,18.6535]
[1721291100860,12.19,158.89,158.84,13.44894493]
[1721291101037,12.19,158.88,158.83,1.2589047]